bitfinex/quotes_ETHUSD_20241223
["timestamp","ask_amount","ask_price","bid_price","bid_amount"]
[1734974230871,1.1257,3361.9,3360.5,0.3944]
[1734974231073,2.97479,3361.6,3360.5,0.3944]
[1734974231966,2.97491,3361.5,3360.6,8.401449]
[1734974232161,1.1424,3362.3,3360.6,8.401449]
[1734974232395,2.97451,3361.9,3360.8,0.3944]
[1734974232734,2.97451,3361.9,3360.9,1.1771399]
[1734974232903,1.1424,3362.3,3360.9,1.1771399]
[1734974232904,2.97433,3362.1,3360.9,1.1771399]
[1734974233203,1.1424,3362.3,3360.8,0.3944]
[1734974233204,0.03718352,3362.0,3360.8,0.3944]
[1734974233409,4.1166,3362.3,3360.8,0.3944]
[1734974233410,2.97475,3361.7,3360.8,0.3944]
[1734974233611,3.0,3362.1,3360.9,2.97536]
[1734974233766,3.0,3362.1,3361.0,0.3944]
[1734974233968,3.0,3362.1,3361.0,0.46290475]
[1734974234205,1.124,3362.7,3361.2,8.401449]
[1734974234389,2.97392,3362.6,3361.4,8.401449]
[1734974234794,2.97377,3362.8,3361.5,3.04295269]
[1734974235311,2.97353,3363.0,3361.8,2.97459]
[1734974235479,2.97322,3363.4,3362.1,2.97432]
[1734974235814,2.973,3363.7,3362.5,2.97396]
[1734974235977,2.97301,3363.6,3362.6,1.1769809]
[1734974236182,1.1611688,3364.0,3362.6,1.24413464]
[1734974236386,0.03716883,3363.9,3362.6,0.06715374]
[1734974236609,2.9738,3362.7,3362.6,0.06715374]
[1734974237139,2.9736,3363.0,3361.5,8.795849]
[1734974237140,2.97388,3362.6,3361.5,8.795849]
[1734974237442,2.97452,3361.9,3361.5,0.3944]
[1734974238008,0.55,3362.1,3360.8,0.3944]
[1734974238206,2.97461,3361.8,3360.8,0.3944]
[1734974238601,0.02968799,3361.7,3360.9,0.336996]
[1734974238802,2.97476,3361.7,3360.8,0.3944]
[1734974239213,0.55,3362.1,3360.8,0.3944]
[1734974239214,2.9751,3361.3,3360.8,0.3944]
[1734974239420,2.9749,3361.5,3360.8,0.3944]
[1734974239621,4.1928,3362.3,3360.8,0.3944]
[1734974239947,2.97417,3362.3,3361.2,8.401449]
[1734974240141,3.0,3362.2,3361.3,1.1376579]
[1734974240844,2.974,3362.5,3361.6,8.401449]
[1734974241048,2.97381,3362.7,3361.8,8.401449]
[1734974241200,2.97381,3362.7,3361.5,3.36922]
[1734974241201,2.97444,3362.0,3361.5,0.3944]
[1734974241751,2.97388,3362.7,3361.6,8.401449]
[1734974242047,2.97284,3363.8,3362.3,8.401449]
[1734974242247,1.1896,3364.1,3362.6,0.3944]
[1734974242430,2.97282,3363.9,3362.7,2.97379]
[1734974242818,1.2318,3364.4,3362.7,8.401449]
[1734974243019,2.97239,3364.3,3363.1,2.97344]
[1734974243334,2.97213,3364.6,3363.4,3.36755]
[1734974243656,2.97221,3364.5,3363.6,8.401449]
[1734974244004,2.97197,3364.8,3363.6,8.401449]
[1734974244216,2.97199,3364.8,3363.6,8.401449]
[1734974244414,2.97199,3364.8,3363.4,0.3944]
[1734974244415,2.97212,3364.6,3363.7,8.401449]
[1734974244629,2.97212,3364.6,3363.8,0.8401449]
[1734974245046,2.97275,3363.9,3363.7,8.401449]
[1734974245201,4.32452706,3365.1,3363.4,0.3944]
[1734974245202,1.2071,3364.8,3363.4,0.3944]
[1734974245408,2.9722,3364.5,3362.9,0.3944]
[1734974245653,2.97339,3363.2,3362.9,0.3944]
[1734974246017,2.9732,3363.4,3362.9,0.3944]
[1734974246349,0.03716857,3363.3,3362.9,0.3944]
[1734974246547,3.0371691,3363.6,3362.9,0.3944]
[1734974246855,2.97329,3363.3,3362.9,0.3944]
[1734974247073,2.97306,3363.6,3362.9,0.3944]
[1734974247275,3.0,3363.3,3361.5,8.401449]
[1734974247409,2.97442,3362.0,3361.4,0.3944]
[1734974247602,0.03718155,3362.4,3361.4,0.3944]
[1734974248027,2.97434,3362.1,3361.4,0.3944]
[1734974248651,2.97446,3362.0,3361.4,0.3944]
[1734974248959,0.55,3362.7,3361.5,0.06217667]
[1734974249108,1.1462,3362.8,3361.5,3.03701667]
[1734974249109,2.97393,3362.6,3361.5,3.03701667]
[1734974249310,1.1462,3362.8,3361.7,2.9746]
[1734974249311,2.97372,3362.8,3361.7,2.9746]
[1734974249510,5.9735,3363.1,3362.0,8.401449]
[1734974249817,1.1638,3363.7,3362.3,8.401449]
[1734974250156,0.03717095,3363.8,3362.6,0.3944]
[1734974250457,2.9738,3362.7,3362.6,0.3944]
[1734974250609,2.97248,3364.2,3362.7,0.06180005]
[1734974250610,2.97371,3362.8,3362.7,0.06180005]
[1734974250950,1.2171,3363.4,3362.0,8.795849]
[1734974251151,2.9737,3362.9,3362.7,0.06180005]
[1734974251457,4.2171,3363.8,3362.3,8.401449]
[1734974251670,2.97328,3363.3,3362.8,0.06162505]
[1734974251883,2.97328,3363.3,3362.3,8.39036383]
[1734974252055,2.97312,3363.5,3362.9,0.06157551]
[1734974252223,2.97312,3363.5,3362.4,8.39036383]
[1734974252224,2.97312,3363.5,3362.5,0.3944]
[1734974252426,2.9732,3363.4,3363.0,0.06151506]
[1734974252636,2.9732,3363.4,3362.6,0.87847638]
[1734974252883,2.9732,3363.4,3363.1,0.06146553]
[1734974253096,2.9732,3363.4,3362.6,0.87847638]
[1734974253375,2.97327,3363.3,3362.6,0.87847638]
[1734974253679,3.0,3364.0,3362.7,9.41835154]
[1734974253982,3.0,3364.5,3362.8,0.3944]
[1734974254145,1.2212,3364.6,3363.3,8.39036383]
[1734974254483,2.9721,3364.7,3363.6,0.3944]
[1734974254484,2.97207,3364.7,3363.6,0.3944]
[1734974254777,2.57398706,3365.1,3363.7,1.23668255]
[1734974254934,1.35278706,3365.1,3363.9,8.39036383]
[1734974255329,2.97195,3364.8,3364.0,0.0603983]
[1734974255555,4.32451706,3365.1,3364.1,8.39036383]
[1734974255760,1.35278706,3365.1,3364.3,0.3944]
[1734974255946,1.24168873,3365.4,3364.7,0.3944]
[1734974256281,1.24168873,3365.4,3365.3,6.3659]
[1734974256282,0.33054948,3365.4,3365.3,6.3659]
[1734974256591,2.97009,3366.9,3365.3,6.3659]
[1734974256592,2.97044,3366.6,3365.4,11.36172383]
[1734974256873,0.33054948,3366.8,3365.8,2.97101]
[1734974257079,0.33054948,3366.8,3365.9,0.3944]
[1734974257295,0.33054948,3366.8,3366.1,8.39036383]
[1734974257779,2.97003,3367.0,3366.2,0.05729957]
[1734974258077,2.96981,3367.3,3366.2,0.05729957]
[1734974258231,4.3497993,3367.9,3366.4,8.39036383]
[1734974258431,2.96956,3367.6,3366.5,0.3944]
[1734974258629,0.1699293,3367.9,3366.6,8.39036383]
[1734974258871,0.1699293,3367.9,3366.5,0.45155125]
[1734974258872,3.1391293,3367.9,3367.2,8.39036383]
[1734974259071,3.1391293,3367.9,3366.7,8.4472094]
[1734974259072,0.1699293,3367.9,3366.7,8.4472094]
[1734974259273,2.96968,3367.4,3367.3,0.05654905]
[1734974259457,3.266648,3367.4,3366.7,8.39036383]
[1734974259802,2.97017,3366.8,3366.5,0.3944]
[1734974260135,3.00694956,3367.2,3365.8,0.3944]
[1734974260346,2.97053,3366.4,3365.8,0.3944]
[1734974260644,2.97035,3366.7,3365.8,0.3944]
[1734974260848,3.0,3367.1,3365.8,0.3944]
[1734974261046,2.97036,3366.6,3365.8,0.3944]
[1734974261485,0.63411375,3367.0,3365.8,0.3944]
[1734974261645,2.97045,3366.5,3365.8,0.3944]
[1734974261995,2.97045,3366.5,3365.9,8.39036383]
[1734974262168,0.03713249,3366.9,3366.0,8.39036383]
[1734974262377,2.97062,3366.3,3365.8,0.3944]
[1734974262683,2.9707,3366.2,3365.8,0.3944]
[1734974262832,0.297062,3366.3,3365.2,8.39036383]
[1734974263032,2.97109,3365.8,3365.3,8.74946383]
[1734974263429,3.52044,3366.5,3365.3,0.3591]
[1734974263788,3.52044,3366.5,3365.4,0.0574884]
[1734974263789,2.97107,3365.8,3365.4,0.0574884]
[1734974264087,2.97106,3365.8,3365.4,0.0574884]
[1734974264288,3.0,3366.4,3365.4,0.0574884]
[1734974264593,1.221,3367.1,3365.5,8.39036383]
[1734974264886,2.97037,3366.6,3365.6,0.3591]
[1734974265041,2.97045,3366.5,3365.6,0.41665818]
[1734974265237,0.296968,3367.4,3365.6,0.41665818]
[1734974265582,2.97009,3366.9,3365.6,0.41665818]
[1734974265783,2.97081,3366.1,3365.6,0.41665818]
[1734974266083,1.1251,3367.3,3365.6,0.41665818]
[1734974266287,4.0949,3367.3,3365.7,8.39036383]
[1734974266455,2.96997,3367.1,3365.7,11.36149383]
[1734974266681,2.96973,3367.4,3366.0,8.39036383]
[1734974266883,1.1677,3367.7,3366.1,0.88069231]
[1734974267223,2.97031,3366.7,3366.1,0.93800322]
[1734974267375,2.97031,3366.7,3366.1,0.05731091]
[1734974267885,3.0,3367.0,3366.1,0.05731091]
[1734974268111,3.0,3367.5,3366.1,0.05731091]
[1734974268406,2.97019,3366.8,3366.1,0.05731091]
[1734974268968,3.0,3367.6,3366.2,0.88067747]
[1734974269197,3.0,3367.1,3366.2,0.93681747]
[1734974269398,5.96993,3367.1,3366.2,0.93681747]
[1734974269724,2.96993,3367.1,3366.2,0.93681747]
[1734974269869,3.0,3367.0,3366.2,0.93681747]
[1734974270222,2.96978,3367.3,3366.4,8.39036383]
[1734974270414,3.0,3367.5,3366.4,8.39036383]
[1734974270415,2.96986,3367.2,3366.4,8.39036383]
[1734974270583,5.96961,3367.5,3366.5,0.41509168]
[1734974270915,0.1699293,3367.9,3367.1,8.39036383]
[1734974271115,0.1699293,3367.9,3367.6,8.39036383]
[1734974271282,0.1699293,3367.9,3367.5,0.3591]
[1734974271283,0.1699293,3367.9,3367.8,8.39036383]
[1734974271684,0.1699293,3367.9,3367.8,8.4457131]
[1734974272919,0.1699293,3367.9,3367.8,8.8048131]
[1734974273219,2.96781,3369.5,3368.3,8.39036383]
[1734974273384,2.96781,3369.5,3367.8,3.60534927]
[1734974273385,2.96781,3369.5,3368.6,8.39036383]
[1734974273584,2.96781,3369.5,3368.5,0.3591]
[1734974273585,2.96749,3369.9,3368.9,8.39036383]
[1734974273784,2.96749,3369.9,3368.5,0.3591]
[1734974273785,0.296749,3369.8,3368.7,8.44392527]
[1734974274015,2.96825,3369.0,3368.7,8.39036383]
[1734974274234,2.96841,3368.8,3368.7,8.39036383]
[1734974274602,2.96841,3368.8,3368.7,7.74719183]
[1734974275607,3.0,3369.0,3368.7,7.74719183]
[1734974275808,2.96841,3368.8,3368.7,7.74719183]
[1734974276821,2.9687,3368.5,3368.1,0.3591]
[1734974277020,0.6,3369.0,3368.1,0.3591]
[1734974277220,2.96877,3368.4,3368.1,0.3591]
[1734974277439,2.96861,3368.6,3368.1,0.3591]
[1734974277957,3.0,3368.8,3368.1,0.3591]
[1734974278109,1.2088,3368.9,3368.1,0.3591]
[1734974278312,2.96867,3368.6,3368.1,0.3591]
[1734974278493,0.417708,3368.8,3368.1,0.3591]
[1734974278494,2.96842,3368.8,3368.1,0.3591]
[1734974278695,3.0,3368.9,3368.2,7.74719183]
[1734974279032,3.0,3368.7,3368.3,7.80095078]
[1734974279235,2.96791,3369.4,3368.5,7.74719183]
[1734974279433,3.264349,3369.8,3368.5,7.74719183]
[1734974279434,2.96798,3369.3,3368.5,7.74719183]
[1734974279637,2.96798,3369.3,3368.6,0.05361082]
[1734974280044,2.96721,3370.2,3369.1,7.74719183]
[1734974280216,1.1313,3371.1,3369.3,0.3591]
[1734974280420,2.96696,3370.5,3369.4,7.74719183]
[1734974280624,2.96696,3370.5,3369.4,7.80040775]
[1734974280829,1.1313,3371.1,3369.5,1.11275677]
[1734974281052,1.1313,3371.1,3369.5,1.16592334]
[1734974281053,0.03708826,3371.0,3369.5,1.16592334]
[1734974281259,2.9667,3370.8,3369.6,0.3591]
[1734974281456,2.96686,3370.6,3369.6,0.3591]
[1734974281663,2.96686,3370.6,3369.7,0.05306788]
[1734974281821,2.96701,3370.4,3369.7,0.05306788]
[1734974282155,5.96656,3370.9,3369.7,0.05306788]
[1734974282371,2.96692,3370.5,3369.7,0.05306788]
[1734974282517,3.72677893,3370.9,3369.7,0.05306788]
[1734974282722,3.0,3370.7,3369.7,0.05306788]
[1734974282916,2.96691,3370.5,3369.6,0.3591]
[1734974283228,2.96691,3370.5,3367.6,0.25]
[1734974283229,2.96771,3369.6,3369.5,7.74719183]
[1734974284564,2.96894,3368.3,3368.0,0.3591]
[1734974284720,0.03711011,3368.9,3368.0,8.10629183]
[1734974284920,3.0,3369.6,3368.1,7.74719183]
[1734974285120,2.96815,3369.1,3368.1,7.74719183]
[1734974285338,2.96824,3369.0,3368.2,1.08252856]
[1734974285565,2.96758,3369.8,3368.4,0.3591]
[1734974285745,2.96794,3369.4,3368.4,0.3591]
[1734974285945,2.96803,3369.3,3368.4,0.3591]
[1734974286459,3.0,3369.7,3368.4,0.3591]
[1734974286657,3.0,3369.5,3368.4,0.3591]
[1734974286831,2.96825,3369.0,3368.4,0.3591]
[1734974287033,0.596758,3369.6,3368.4,0.3591]
[1734974287426,2.96794,3369.4,3368.4,0.3591]
[1734974287661,3.0,3370.0,3368.4,0.3591]
[1734974287834,2.96733,3370.1,3368.4,0.3591]
[1734974287835,2.96771,3369.6,3368.4,0.3591]
[1734974288032,3.0,3369.0,3367.9,0.3591]
[1734974288266,2.96912,3368.0,3367.9,0.3591]
[1734974288567,3.00542933,3368.9,3367.9,0.3591]
[1734974288568,2.96838,3368.9,3367.9,0.3591]
[1734974288730,3.0,3368.8,3368.0,7.74719183]
[1734974289123,1.1894,3369.4,3367.9,0.40964203]
[1734974289124,2.96884,3368.4,3368.1,0.05044325]
[1734974289348,2.96894,3368.2,3367.5,0.3591]
[1734974289749,2.9692,3368.0,3367.6,0.05069023]
[1734974289991,0.55,3368.3,3367.5,0.3591]
[1734974290294,2.96951,3367.6,3367.1,7.74719183]
[1734974290446,1.1473,3368.5,3367.1,8.55782101]
[1734974290792,2.96926,3367.9,3367.1,8.55782101]
[1734974290939,3.0,3368.0,3367.1,7.74719183]
[1734974291274,3.0,3367.8,3366.7,7.74719183]
[1734974291481,2.9695,3367.6,3366.7,7.74719183]
[1734974291779,2.9695,3367.6,3366.5,0.307]
[1734974291780,3.0,3367.6,3366.9,7.74719183]
[1734974292002,3.0,3367.8,3366.6,7.74719183]
[1734974292003,2.97002,3367.0,3366.6,7.74719183]
[1734974292146,3.0,3368.0,3366.6,7.74719183]
[1734974292347,2.97018,3366.8,3366.5,0.307]
[1734974292696,2.97007,3367.0,3366.5,8.05419183]
[1734974292842,3.0,3367.2,3366.5,8.05419183]
[1734974293048,3.0,3367.2,3366.1,0.307]
[1734974293049,3.0,3366.9,3366.1,0.307]
[1734974293241,0.03712838,3367.1,3365.6,0.307]
[1734974293242,2.971,3365.9,3365.6,0.307]
[1734974293470,2.97058,3366.4,3365.6,0.307]
[1734974293687,2.97096,3366.0,3365.6,0.307]
[1734974293871,2.97096,3366.0,3365.7,0.05227559]
[1734974294075,3.0,3366.7,3365.7,0.05227559]
[1734974294277,3.14863221,3367.7,3365.7,0.05227559]
[1734974294278,3.0,3367.3,3365.8,7.74719183]
[1734974294482,3.0,3367.5,3366.0,0.307]
[1734974294794,3.0,3367.1,3366.1,0.05207778]
[1734974295110,0.651911,3367.9,3366.1,0.05207778]
[1734974295111,1.1294,3368.2,3366.4,7.74719183]
[1734974295261,6.11720221,3368.7,3366.8,0.307]
[1734974295262,1.1294,3368.7,3366.8,0.307]
[1734974295444,2.96868,3368.5,3366.8,0.307]
[1734974295653,0.76550629,3368.4,3366.9,0.0516823]
[1734974295881,0.7283827,3368.4,3367.0,7.74719183]
[1734974296061,1.1294,3368.7,3367.0,7.74719183]
[1734974296396,1.1294,3368.7,3367.2,7.74719183]
[1734974296922,4.09793,3368.7,3367.3,0.05148463]
[1734974297202,2.96894,3368.2,3367.3,0.05148463]
[1734974297348,0.03711525,3368.6,3367.3,0.05148463]
[1734974297349,2.9688,3368.4,3367.3,0.05148463]
[1734974297698,1.1294,3368.7,3367.5,0.307]
[1734974297999,2.96894,3368.2,3367.6,0.0513364]
[1734974298152,2.96922,3367.9,3367.6,0.0513364]
[1734974298354,2.96922,3367.9,3367.5,0.307]
[1734974298698,2.96922,3367.9,3367.6,0.0513364]
[1734974298846,2.96904,3368.1,3367.6,0.0513364]
[1734974299045,2.96904,3368.1,3367.5,0.307]
[1734974299286,0.55,3368.4,3367.7,0.051287]
[1734974299498,2.96921,3367.9,3367.6,0.0513364]
[1734974299801,2.96905,3368.1,3367.7,0.051287]
[1734974300008,2.96914,3368.0,3367.5,0.307]
[1734974300206,3.03711668,3368.0,3367.8,0.0512376]
[1734974300351,3.51926,3367.9,3367.0,0.307]
[1734974300549,2.96955,3367.6,3367.0,0.307]
[1734974300866,2.96955,3367.6,3366.5,0.307]
[1734974300867,2.96992,3367.1,3366.5,0.307]
[1734974301065,3.0,3367.4,3366.5,0.307]
[1734974301264,3.0,3367.5,3366.5,0.307]
[1734974301463,2.96999,3367.1,3366.5,0.307]
[1734974301683,0.03712518,3367.0,3366.5,0.307]
[1734974301898,2.96974,3367.3,3366.5,0.307]
[1734974302099,2.96956,3367.5,3366.5,9.15667801]
[1734974302255,2.9692,3368.0,3366.8,2.9701]
[1734974302609,2.9693,3367.8,3366.9,7.74719183]
[1734974302774,3.0,3367.8,3366.9,7.74719183]
[1734974303291,0.03711844,3367.8,3366.9,7.74719183]
[1734974303479,3.0,3367.8,3366.9,8.52191101]
[1734974303676,2.96942,3367.7,3366.9,7.74719183]
[1734974304074,2.96922,3367.9,3366.9,7.74719183]
[1734974304288,3.0,3367.8,3367.0,0.307]
[1734974304494,2.96885,3368.4,3367.3,2.96973]
[1734974304673,3.03711261,3368.3,3367.2,7.74719183]
[1734974305004,3.03711261,3368.3,3367.1,7.74719183]
[1734974305005,3.0,3368.1,3367.1,7.74719183]
[1734974305211,2.96936,3367.8,3367.1,7.74719183]
[1734974305411,3.00657844,3367.7,3367.1,7.74719183]
[1734974305704,2.96946,3367.7,3367.1,7.74719183]
[1734974305907,0.55,3368.7,3367.2,7.74719183]
[1734974306110,1.098,3368.8,3367.2,7.74719183]
[1734974306111,3.0,3368.3,3367.2,11.52235101]
[1734974306259,3.0,3368.3,3367.2,8.55261101]
[1734974306455,3.0,3368.3,3367.3,7.74719183]
[1734974306860,3.0,3368.3,3367.4,7.74719183]
[1734974307414,0.03711434,3368.2,3367.4,7.74719183]
[1734974307596,0.03711878,3368.1,3367.0,0.307]
[1734974307801,2.96937,3367.8,3367.0,0.307]
[1734974308165,0.03712044,3367.8,3367.0,0.307]
[1734974308396,2.96938,3367.7,3366.6,8.05419183]
[1734974308599,2.96967,3367.4,3366.6,8.05419183]
[1734974308806,2.96976,3367.3,3366.7,0.0524218]
[1734974309214,1.1362,3367.9,3366.7,0.97333178]
[1734974309514,0.58712021,3367.8,3366.7,0.0524218]
[1734974309821,2.96975,3367.3,3366.7,7.74719183]
[1734974310014,2.96975,3367.3,3366.8,0.05255163]
[1734974310308,2.96975,3367.3,3366.7,7.74719183]
[1734974310309,2.96979,3367.3,3366.7,7.74719183]
[1734974310458,2.96979,3367.3,3366.9,0.05250221]
[1734974310658,2.96979,3367.3,3366.7,7.74719183]
[1734974310919,3.0,3367.6,3367.0,0.05252885]
[1734974311225,3.0,3367.6,3366.3,2.9706]
[1734974311226,1.1023,3368.4,3366.9,0.307]
[1734974311360,4.07113,3368.4,3367.1,0.05247943]
[1734974311556,0.0371157,3368.3,3367.1,0.05247943]
[1734974312049,2.96967,3367.4,3367.1,0.05247943]
[1734974312313,2.9694,3367.7,3367.1,0.05247943]
[1734974312473,2.96982,3367.2,3367.1,0.05247943]
[1734974312672,0.03712514,3368.3,3367.1,0.05247943]
[1734974312882,3.0,3367.7,3367.1,0.05247943]
[1734974313201,2.96982,3367.2,3367.1,0.05247943]
[1734974313508,2.97037,3366.6,3366.1,0.307]
[1734974313859,2.97017,3366.9,3366.2,0.05292431]
[1734974314064,0.55,3367.2,3366.1,0.307]
[1734974314065,2.97021,3366.8,3366.1,0.307]
[1734974314297,2.97021,3366.8,3366.3,0.05287486]
[1734974314465,2.97021,3366.8,3366.2,0.05292431]
[1734974314815,2.97021,3366.8,3366.1,0.307]
[1734974314816,2.97018,3366.8,3366.3,0.05287486]
[1734974315025,2.97018,3366.8,3366.1,0.307]
[1734974315232,2.9703,3366.7,3366.4,0.05282543]
[1734974315432,1.182,3367.5,3366.1,0.307]
[1734974315725,1.83361296,3368.4,3366.9,2.97008]
[1734974315726,2.96929,3367.9,3366.9,2.97008]
[1734974315878,1.1459,3368.3,3366.7,7.74719183]
[1734974315879,4.11481,3368.3,3366.7,7.74719183]
[1734974316063,2.96911,3368.1,3367.0,3.02305585]
[1734974316270,1.1459,3368.3,3367.1,0.307]
[1734974316459,2.96896,3368.2,3367.2,2.96981]
[1734974316664,0.03711732,3368.5,3367.3,0.32861559]
[1734974316924,3.0,3368.0,3367.3,0.0529076]
[1734974317426,5.9688,3368.4,3367.3,7.80009943]
[1734974317728,1.1946,3368.7,3367.5,2.96953]
[1734974317886,2.96869,3368.5,3367.6,0.307]
[1734974318221,0.03711247,3368.9,3367.6,0.35975938]
[1734974318413,0.03711247,3369.0,3367.7,0.81069512]
[1734974318573,1.83361296,3369.5,3367.7,0.81069512]
[1734974318574,1.83361296,3369.5,3368.2,8.05419183]
[1734974318769,1.83361296,3369.5,3368.7,2.96847]
[1734974318983,1.83361296,3369.5,3368.3,0.05241362]
[1734974319185,4.80142296,3369.5,3368.4,0.81066055]
[1734974319517,4.80142296,3369.5,3368.5,0.05231487]
[1734974319716,1.83361296,3369.5,3368.5,3.02094487]
[1734974320069,0.719903,3369.9,3368.6,0.307]
[1734974320270,2.96736,3370.0,3368.9,2.9683]
[1734974320470,2.96736,3370.0,3369.0,7.74719183]
[1734974320709,2.96713,3370.3,3369.2,3.27505]
[1734974320864,2.96691,3370.5,3369.2,0.307]
[1734974321070,2.96715,3370.3,3369.3,0.05099678]
[1734974321370,2.96754,3369.8,3369.3,0.05099678]
[1734974321617,2.96781,3369.5,3368.5,7.74719183]
[1734974321768,0.03709507,3370.2,3368.4,3.77941055]
[1734974321769,1.007,3370.1,3368.7,7.74719183]
[1734974321999,2.96779,3369.5,3368.8,7.74719183]
[1734974322315,2.96779,3369.5,3368.8,7.79826175]
[1734974322519,2.96809,3369.2,3368.8,0.05106992]
[1734974322682,0.03710445,3369.1,3368.8,0.05106992]
[1734974322887,0.03710445,3369.1,3367.8,7.74719183]
[1734974322888,0.55,3369.0,3367.8,7.74719183]
[1734974323074,3.0,3368.5,3367.8,10.71647183]
[1734974323416,0.55,3369.0,3367.8,7.74719183]
[1734974323417,3.0,3368.8,3367.8,7.74719183]
[1734974323718,0.03711018,3368.7,3367.8,7.74719183]
[1734974323900,2.96863,3368.6,3367.9,0.05156319]
[1734974324222,2.96863,3368.6,3367.1,1.17669204]
[1734974324223,0.03711249,3368.7,3367.3,7.74719183]
[1734974324371,2.9688,3368.4,3368.0,0.05170376]
[1734974324720,3.0,3369.0,3368.0,2.96911]
[1734974324883,0.58710741,3369.2,3368.1,7.79906877]
[1734974325226,3.0,3369.0,3368.1,7.79906877]
[1734974325432,0.9861,3369.8,3368.3,7.74719183]
[1734974325571,2.96755,3369.8,3368.7,2.96847]
[1734974325787,2.96755,3369.8,3368.8,3.01895818]
[1734974325967,2.96727,3370.1,3368.9,8.04908765]
[1734974326273,2.96814,3369.2,3369.0,0.05044945]
[1734974326502,0.9861,3370.3,3368.3,7.74719183]
[1734974326811,3.0,3369.7,3368.6,2.96857]
[1734974326967,2.96728,3370.1,3369.0,7.74719183]
[1734974327174,2.9669,3370.6,3369.1,3.74284918]
[1734974327375,3.00399531,3370.6,3369.1,3.7931407]
[1734974327572,2.9669,3370.6,3369.1,3.7931407]
[1734974328029,2.96722,3370.2,3369.1,3.7931407]
[1734974328247,0.9861,3370.7,3369.3,7.74719183]
[1734974328445,0.1699293,3371.2,3369.6,7.74719183]
[1734974328446,0.9861,3371.1,3369.6,7.74719183]
[1734974328724,0.9861,3371.1,3369.4,0.85722025]
[1734974328725,2.96684,3370.6,3369.7,7.74719183]
[1734974328929,3.95254,3371.1,3369.7,0.04977832]
[1734974328930,2.96716,3370.3,3369.7,0.04977832]
[1734974329136,2.96683,3370.6,3369.7,0.04977832]
[1734974329335,3.00389345,3370.7,3369.5,7.74719183]
[1734974329336,2.9668,3370.7,3369.5,7.74719183]
[1734974329487,3.0,3370.1,3369.8,0.04933291]
[1734974329837,3.0,3370.1,3369.5,7.74719183]
[1734974330010,3.0,3370.1,3369.9,0.04928358]
[1734974330178,0.9861,3371.1,3369.6,7.74719183]
[1734974330378,2.96702,3370.4,3369.7,0.0493714]
[1734974330614,0.55,3370.1,3369.2,7.74719183]
[1734974330844,0.55,3369.9,3369.8,0.04932206]
[1734974331025,0.55,3369.9,3368.8,2.96833]
[1734974331026,3.0,3369.9,3368.8,2.96833]
[1734974331209,3.0,3369.9,3369.8,0.04932206]
[1734974331411,3.0,3369.8,3368.7,7.74719183]
[1734974331759,2.96764,3369.7,3368.7,7.74719183]
[1734974331938,2.96764,3369.7,3368.8,0.0498156]
[1734974332814,0.03709855,3369.7,3368.8,0.0498156]
[1734974333029,0.55,3370.0,3368.8,0.0498156]
[1734974333357,3.0,3369.6,3368.7,7.74719183]
[1734974333557,2.96792,3369.4,3368.7,7.74719183]
[1734974333714,2.96797,3369.3,3368.8,0.0498156]
[1734974334061,0.55,3369.2,3368.2,7.74719183]
[1734974334269,2.96781,3369.5,3368.9,0.04976623]
[1734974334574,2.96803,3369.3,3368.9,0.04976623]
[1734974334756,2.96803,3369.3,3368.3,7.74719183]
[1734974334963,0.351781,3369.5,3368.3,10.71603183]
[1734974334964,3.0,3369.5,3368.3,10.71603183]
[1734974335261,3.0,3369.5,3368.4,3.01872309]
[1734974335441,2.96778,3369.6,3368.4,0.05001309]
[1734974335639,2.96778,3369.6,3368.5,3.7960989]
[1734974335806,2.96798,3369.3,3368.5,0.8274689]
[1734974336165,3.97291,3370.2,3368.5,0.8274689]
[1734974336166,2.9682,3369.1,3368.5,0.04774841]
[1734974336656,2.96837,3368.9,3368.6,0.04798657]
[1734974336872,2.96885,3368.3,3367.3,7.47640692]
[1734974337161,2.96885,3368.3,3367.0,4.91367027]
[1734974337162,2.96931,3367.8,3367.1,7.47640692]
[1734974337325,0.03711335,3368.3,3367.0,7.47640692]
[1734974337529,2.96958,3367.5,3367.1,7.47640692]
[1734974337853,2.96985,3367.2,3366.8,8.65309896]
[1734974338062,2.96938,3367.7,3366.8,8.65309896]
[1734974338063,2.96976,3367.3,3366.8,7.47640692]
[1734974338386,2.96974,3367.3,3366.3,2.76959142]
[1734974338537,0.55,3367.7,3366.3,2.76959142]
[1734974338733,0.651918,3367.7,3366.4,1.02459983]
[1734974338934,3.0,3368.0,3366.9,10.44647692]
[1734974339275,2.96869,3368.5,3367.1,10.24599834]
[1734974339472,2.96813,3369.2,3367.5,2.9695]
[1734974339631,0.9339,3369.3,3367.1,10.24599834]
[1734974339632,2.96823,3369.0,3367.2,7.47640692]
[1734974339839,2.96916,3368.0,3366.9,7.47640692]
[1734974340050,2.96916,3368.0,3366.9,10.44646692]
[1734974340389,0.30053408,3368.9,3367.0,10.61729715]
[1734974340592,2.96854,3368.7,3367.7,7.47640692]
[1734974340942,3.0057392,3368.6,3367.7,7.47640692]
[1734974341338,0.0371092,3368.6,3367.7,7.47640692]
[1734974341538,5.96857,3368.7,3367.7,7.47640692]
[1734974341738,2.96889,3368.3,3367.7,7.47640692]
[1734974341958,3.0,3368.5,3367.7,7.47640692]
[1734974342240,2.96831,3369.0,3367.8,2.96922]
[1734974342441,3.0,3368.6,3367.8,0.04838166]
[1734974342754,2.96855,3368.7,3367.7,7.47640692]
[1734974343082,3.0,3369.1,3367.8,0.04838166]
[1734974343083,3.55,3369.1,3367.8,0.04838166]
[1734974343286,2.96899,3368.2,3367.2,7.47640692]
[1734974343466,2.96899,3368.2,3367.9,0.04833226]
[1734974343670,2.96899,3368.2,3367.3,7.47640692]
[1734974343671,0.03711538,3368.1,3367.3,7.47640692]
[1734974344037,0.9919,3368.4,3367.4,0.04857927]
[1734974344236,3.0,3368.1,3367.4,0.04857927]